[Event "*** Titled Tuesday Blitz"]
[Site "Chess.com"]
[Date "2021.04.06"]
[Round "5"]
[White "mary-sanna"]
[Black "PavelChernomordik"]
[Result "1/2-1/2"]
[WhiteElo "2116"]
[BlackElo "2322"]
[TimeControl "180+1"]
[EndTime "10:58:33 PDT"]
[Termination "Game drawn - insufficient material"]

1. d4 {[%clk 0:03:00.9]} 1... g6 {[%clk 0:03:00.9]} 2. e4 {[%clk 0:02:57.4]}
2... Bg7 {[%clk 0:03:00.5]} 3. Nc3 {[%clk 0:02:52.6]} 3... d6 {[%clk 0:03:00.1]}
4. Bf4 {[%clk 0:02:51.8]} 4... a6 {[%clk 0:02:58.1]} 5. Qd2 {[%clk 0:02:50.2]}
5... b5 {[%clk 0:02:57.6]} 6. f3 {[%clk 0:02:49.5]} 6... Bb7 {[%clk 0:02:57.2]}
7. h4 {[%clk 0:02:46.4]} 7... h6 {[%clk 0:02:56.5]} 8. O-O-O {[%clk 0:02:44.7]}
8... Nd7 {[%clk 0:02:56]} 9. g4 {[%clk 0:02:41.2]} 9... e6 {[%clk 0:02:51]} 10.
Kb1 {[%clk 0:02:35.3]} 10... Ne7 {[%clk 0:02:46.4]} 11. Nh3 {[%clk 0:02:17.3]}
11... Nb6 {[%clk 0:02:44.9]} 12. e5 {[%clk 0:01:59]} 12... dxe5 {[%clk
0:02:32.4]} 13. Bxe5 {[%clk 0:01:58.1]} 13... Bxe5 {[%clk 0:02:28.7]} 14. dxe5
{[%clk 0:01:59]} 14... Bxf3 {[%clk 0:02:16.1]} 15. Qxd8+ {[%clk 0:01:53.2]}
15... Rxd8 {[%clk 0:02:15.3]} 16. Rxd8+ {[%clk 0:01:49]} 16... Kxd8 {[%clk
0:02:15]} 17. Rg1 {[%clk 0:01:45.5]} 17... Kc8 {[%clk 0:02:07]} 18. a4 {[%clk
0:01:36.3]} 18... Nxa4 {[%clk 0:01:58.8]} 19. Nxa4 {[%clk 0:01:35.5]} 19... bxa4
{[%clk 0:01:58.5]} 20. Bxa6+ {[%clk 0:01:35.7]} 20... Kb8 {[%clk 0:01:48.9]} 21.
Bb5 {[%clk 0:01:34.3]} 21... Bc6 {[%clk 0:01:42.2]} 22. Bxc6 {[%clk 0:01:16.4]}
22... Nxc6 {[%clk 0:01:41.4]} 23. Re1 {[%clk 0:01:16.9]} 23... Rd8 {[%clk
0:01:40]} 24. Kc1 {[%clk 0:01:17]} 24... Rd4 {[%clk 0:01:37]} 25. Nf2 {[%clk
0:01:15.7]} 25... Rf4 {[%clk 0:01:25.7]} 26. Re2 {[%clk 0:01:13.1]} 26... Nxe5
{[%clk 0:01:22.3]} 27. Rxe5 {[%clk 0:01:00.3]} 27... Rxf2 {[%clk 0:01:20.7]} 28.
Re4 {[%clk 0:01:00.9]} 28... Rh2 {[%clk 0:01:12.3]} 29. g5 {[%clk 0:00:51.6]}
29... hxg5 {[%clk 0:01:07.1]} 30. hxg5 {[%clk 0:00:52.5]} 30... Rg2 {[%clk
0:01:05.4]} 31. Rf4 {[%clk 0:00:49.3]} 31... Rxg5 {[%clk 0:01:04.1]} 32. Rxf7
{[%clk 0:00:49.3]} 32... Rf5 {[%clk 0:00:55.5]} 33. Rg7 {[%clk 0:00:44.5]} 33...
g5 {[%clk 0:00:55]} 34. Kd2 {[%clk 0:00:44.7]} 34... Kb7 {[%clk 0:00:53.6]} 35.
Ke3 {[%clk 0:00:44.9]} 35... Kc6 {[%clk 0:00:53.1]} 36. Ke4 {[%clk 0:00:38.9]}
36... Kd6 {[%clk 0:00:48.9]} 37. Rg8 {[%clk 0:00:33.3]} 37... Rf2 {[%clk
0:00:43.3]} 38. Rxg5 {[%clk 0:00:26.4]} 38... Rxc2 {[%clk 0:00:42.3]} 39. Rb5
{[%clk 0:00:26.3]} 39... Rc4+ {[%clk 0:00:34.8]} 40. Kd3 {[%clk 0:00:24.8]}
40... Rh4 {[%clk 0:00:34.7]} 41. Rb7 {[%clk 0:00:23.5]} 41... e5 {[%clk
0:00:31.9]} 42. Rb5 {[%clk 0:00:20.7]} 42... c5 {[%clk 0:00:31.1]} 43. Rb6+
{[%clk 0:00:18.3]} 43... Kd5 {[%clk 0:00:30.3]} 44. Rb8 {[%clk 0:00:18.4]} 44...
Rb4 {[%clk 0:00:29.2]} 45. Rd8+ {[%clk 0:00:17.1]} 45... Kc6 {[%clk 0:00:28.8]}
46. Kc3 {[%clk 0:00:16.9]} 46... e4 {[%clk 0:00:27.7]} 47. Re8 {[%clk
0:00:15.7]} 47... e3 {[%clk 0:00:22.9]} 48. Rxe3 {[%clk 0:00:13.8]} 48... Rb3+
{[%clk 0:00:22.4]} 49. Kd2 {[%clk 0:00:14.6]} 49... Rxe3 {[%clk 0:00:22.1]} 50.
Kxe3 {[%clk 0:00:15.5]} 50... Kb5 {[%clk 0:00:21.3]} 51. Kd3 {[%clk 0:00:14.2]}
51... Kb4 {[%clk 0:00:21.1]} 52. Kc2 {[%clk 0:00:14.1]} 52... c4 {[%clk
0:00:21.1]} 53. Kc1 {[%clk 0:00:13.5]} 53... Kb3 {[%clk 0:00:20.6]} 54. Kb1
{[%clk 0:00:13.4]} 54... Kb4 {[%clk 0:00:16.8]} 55. Kc2 {[%clk 0:00:12.4]} 55...
Kc5 {[%clk 0:00:16.7]} 56. Kc3 {[%clk 0:00:12.4]} 56... Kd5 {[%clk 0:00:16.4]}
57. Kb4 {[%clk 0:00:12.6]} 57... Kd4 {[%clk 0:00:14.2]} 58. Kxa4 {[%clk
0:00:12.8]} 58... c3 {[%clk 0:00:13]} 59. bxc3+ {[%clk 0:00:12.6]} 59... Kxc3
{[%clk 0:00:12.7]} 1/2-1/2

[Event "*** Titled Tuesday Blitz"]
[Site "Chess.com"]
[Date "2021.04.06"]
[Round "5"]
[White "crescentmoon2411"]
[Black "Supernotar"]
[Result "1-0"]
[WhiteElo "2879"]
[BlackElo "2688"]
[TimeControl "180+1"]
[EndTime "10:58:39 PDT"]
[Termination "crescentmoon2411 won by checkmate"]

1. e4 {[%clk 0:03:00.9]} 1... c6 {[%clk 0:03:00.1]} 2. d4 {[%clk 0:03:00.4]}
2... d5 {[%clk 0:03:01]} 3. exd5 {[%clk 0:03:00.8]} 3... cxd5 {[%clk 0:03:01.7]}
4. Bd3 {[%clk 0:03:01.2]} 4... Nc6 {[%clk 0:03:01.5]} 5. c3 {[%clk 0:03:01.3]}
5... Qc7 {[%clk 0:03:01.9]} 6. Ne2 {[%clk 0:03:00.2]} 6... Bg4 {[%clk
0:03:01.8]} 7. O-O {[%clk 0:02:57]} 7... Bh5 {[%clk 0:03:01.7]} 8. Qe1 {[%clk
0:02:50.3]} 8... e6 {[%clk 0:02:59.7]} 9. Nf4 {[%clk 0:02:33.5]} 9... Nf6 {[%clk
0:02:59.1]} 10. Nxh5 {[%clk 0:02:31.6]} 10... Nxh5 {[%clk 0:03:00]} 11. g3
{[%clk 0:02:29.4]} 11... Bd6 {[%clk 0:02:55.3]} 12. Nd2 {[%clk 0:02:26.9]} 12...
Nf6 {[%clk 0:02:49]} 13. Nf3 {[%clk 0:02:24]} 13... g6 {[%clk 0:02:19.5]} 14.
Qe2 {[%clk 0:02:19.9]} 14... O-O {[%clk 0:02:05.8]} 15. Re1 {[%clk 0:02:17.8]}
15... Rfe8 {[%clk 0:02:03.9]} 16. Ne5 {[%clk 0:02:13.6]} 16... Nd7 {[%clk
0:01:53.9]} 17. Nxd7 {[%clk 0:01:49.4]} 17... Qxd7 {[%clk 0:01:54.8]} 18. Qf3
{[%clk 0:01:35.1]} 18... a6 {[%clk 0:01:51.7]} 19. h4 {[%clk 0:01:32]} 19... Bf8
{[%clk 0:01:43.3]} 20. Bf4 {[%clk 0:01:28.3]} 20... b5 {[%clk 0:01:37.8]} 21. a3
{[%clk 0:01:26.6]} 21... Na5 {[%clk 0:01:27.8]} 22. Re2 {[%clk 0:01:23.7]} 22...
Nc4 {[%clk 0:01:27.3]} 23. h5 {[%clk 0:01:18.8]} 23... a5 {[%clk 0:01:21.8]} 24.
hxg6 {[%clk 0:01:17.1]} 24... hxg6 {[%clk 0:01:19.8]} 25. Kg2 {[%clk 0:01:16.1]}
25... Bg7 {[%clk 0:01:17.8]} 26. Rh1 {[%clk 0:01:11.4]} 26... b4 {[%clk
0:01:14.6]} 27. Qg4 {[%clk 0:00:58.5]} 27... bxc3 {[%clk 0:01:08.5]} 28. bxc3
{[%clk 0:00:56.3]} 28... Rac8 {[%clk 0:01:03.7]} 29. Qh3 {[%clk 0:00:39]} 29...
f5 {[%clk 0:01:02.1]} 30. Qh7+ {[%clk 0:00:38]} 30... Kf7 {[%clk 0:01:02.1]} 31.
Rh6 {[%clk 0:00:36.3]} 31... Kf8 {[%clk 0:00:24.8]} 32. Rxg6 {[%clk 0:00:33.6]}
32... Qf7 {[%clk 0:00:22.8]} 33. Rxg7 {[%clk 0:00:33]} 33... Qxg7 {[%clk
0:00:22.4]} 34. Bh6 {[%clk 0:00:33.1]} 34... Qxh6 {[%clk 0:00:20.4]} 35. Qxh6+
{[%clk 0:00:34]} 35... Kf7 {[%clk 0:00:20.8]} 36. Bxc4 {[%clk 0:00:28.8]} 36...
dxc4 {[%clk 0:00:18.2]} 37. Rb2 {[%clk 0:00:26.1]} 37... Re7 {[%clk 0:00:15.5]}
38. Rb6 {[%clk 0:00:18.6]} 38... Rg8 {[%clk 0:00:14.1]} 39. d5 {[%clk
0:00:17.9]} 39... Rg6 {[%clk 0:00:07.9]} 40. Qh7+ {[%clk 0:00:13.7]} 40... Kf6
{[%clk 0:00:07.7]} 41. Rxe6+ {[%clk 0:00:11.4]} 41... Rxe6 {[%clk 0:00:07.6]}
42. dxe6 {[%clk 0:00:12.3]} 42... Rg7 {[%clk 0:00:04.5]} 43. Qh6+ {[%clk
0:00:12.2]} 43... Rg6 {[%clk 0:00:04.9]} 44. Qe3 {[%clk 0:00:11.2]} 44... Rg7
{[%clk 0:00:04.7]} 45. Qd4+ {[%clk 0:00:10.9]} 45... Kg6 {[%clk 0:00:05.1]} 46.
Qxc4 {[%clk 0:00:10.7]} 46... Re7 {[%clk 0:00:04.9]} 47. Qd5 {[%clk 0:00:10.3]}
47... Kf6 {[%clk 0:00:05]} 48. c4 {[%clk 0:00:10.2]} 48... Rxe6 {[%clk
0:00:05.3]} 49. Qxa5 {[%clk 0:00:10.2]} 49... f4 {[%clk 0:00:03.2]} 50. gxf4
{[%clk 0:00:09.7]} 50... Re4 {[%clk 0:00:03]} 51. Qg5+ {[%clk 0:00:08.9]} 51...
Ke6 {[%clk 0:00:02.4]} 52. Qd5+ {[%clk 0:00:09.5]} 52... Kf6 {[%clk 0:00:02.3]}
53. Qxe4 {[%clk 0:00:09.6]} 53... Kg7 {[%clk 0:00:03.2]} 54. c5 {[%clk
0:00:09.6]} 54... Kh8 {[%clk 0:00:04.1]} 55. c6 {[%clk 0:00:09.9]} 55... Kg7
{[%clk 0:00:04.3]} 56. c7 {[%clk 0:00:10.1]} 56... Kf6 {[%clk 0:00:05.2]} 57.
c8=Q {[%clk 0:00:09.7]} 57... Kg7 {[%clk 0:00:06.1]} 58. Qg4+ {[%clk 0:00:08.7]}
58... Kf8 {[%clk 0:00:05.4]} 59. Qg5 {[%clk 0:00:07.9]} 59... Kf7 {[%clk
0:00:05]} 60. Qee7# {[%clk 0:00:08.4]} 1-0

[Event "*** Titled Tuesday Blitz"]
[Site "Chess.com"]
[Date "2021.04.06"]
[Round "5"]
[White "Grieve72"]
[Black "Nachsueb"]
[Result "1-0"]
[WhiteElo "2492"]
[BlackElo "2205"]
[TimeControl "180+1"]
[EndTime "10:58:43 PDT"]
[Termination "Grieve72 won on time"]

1. e4 {[%clk 0:02:59.6]} 1... c5 {[%clk 0:02:59.6]} 2. Nf3 {[%clk 0:02:59.5]}
2... e6 {[%clk 0:03:00.1]} 3. d4 {[%clk 0:02:59.6]} 3... cxd4 {[%clk 0:03:01]}
4. Nxd4 {[%clk 0:03:00.5]} 4... Nc6 {[%clk 0:03:01.5]} 5. Nc3 {[%clk 0:03:00.2]}
5... a6 {[%clk 0:03:02]} 6. Be3 {[%clk 0:02:59.6]} 6... Qc7 {[%clk 0:03:02.5]}
7. Qf3 {[%clk 0:02:59.4]} 7... d6 {[%clk 0:03:01.8]} 8. O-O-O {[%clk 0:02:46.5]}
8... Bd7 {[%clk 0:03:01.6]} 9. Qg3 {[%clk 0:02:42.7]} 9... b5 {[%clk 0:03:01.5]}
10. Kb1 {[%clk 0:02:22.8]} 10... Nf6 {[%clk 0:02:57.5]} 11. Bd3 {[%clk
0:02:16.3]} 11... g6 {[%clk 0:02:49.7]} 12. f4 {[%clk 0:01:58.3]} 12... b4
{[%clk 0:02:09.9]} 13. Nce2 {[%clk 0:01:55.8]} 13... Bg7 {[%clk 0:02:01.9]} 14.
f5 {[%clk 0:01:45.6]} 14... O-O {[%clk 0:01:55.4]} 15. fxe6 {[%clk 0:01:23.9]}
15... fxe6 {[%clk 0:01:52.4]} 16. Rhf1 {[%clk 0:01:23.6]} 16... Ne5 {[%clk
0:01:47]} 17. Nf4 {[%clk 0:01:18.5]} 17... Rae8 {[%clk 0:01:33.9]} 18. Be2
{[%clk 0:00:42.6]} 18... Nc4 {[%clk 0:01:27.9]} 19. Bc1 {[%clk 0:00:35.9]} 19...
e5 {[%clk 0:01:25.1]} 20. Nxg6 {[%clk 0:00:18.4]} 20... hxg6 {[%clk 0:01:22.3]}
21. Qxg6 {[%clk 0:00:19]} 21... exd4 {[%clk 0:00:51.1]} 22. Bh6 {[%clk
0:00:18.8]} 22... Be6 {[%clk 0:00:49]} 23. Rxd4 {[%clk 0:00:10.6]} 23... Ne5
{[%clk 0:00:45.8]} 24. Qg5 {[%clk 0:00:09.7]} 24... Kh7 {[%clk 0:00:32.4]} 25.
Bxg7 {[%clk 0:00:08]} 25... Qxg7 {[%clk 0:00:33.3]} 26. Qh4+ {[%clk 0:00:08.3]}
26... Qh6 {[%clk 0:00:32.4]} 27. Qxh6+ {[%clk 0:00:07.3]} 27... Kxh6 {[%clk
0:00:33.3]} 28. Rxd6 {[%clk 0:00:08]} 28... Nfd7 {[%clk 0:00:14.3]} 29. Rxf8
{[%clk 0:00:05.9]} 29... Nxf8 {[%clk 0:00:15.2]} 30. Bxa6 {[%clk 0:00:06.1]}
30... Nf7 {[%clk 0:00:11.3]} 31. Rb6 {[%clk 0:00:05.2]} 31... Kg7 {[%clk
0:00:11.3]} 32. Rxb4 {[%clk 0:00:02.8]} 32... Bg4 {[%clk 0:00:10.3]} 33. Bd3
{[%clk 0:00:02.8]} 33... Bh5 {[%clk 0:00:09.1]} 34. a4 {[%clk 0:00:02.9]} 34...
Ne5 {[%clk 0:00:09]} 35. a5 {[%clk 0:00:02.5]} 35... Nxd3 {[%clk 0:00:09.2]} 36.
cxd3 {[%clk 0:00:03.4]} 36... Bf7 {[%clk 0:00:08.6]} 37. Kc2 {[%clk 0:00:02.8]}
37... Ra8 {[%clk 0:00:08.9]} 38. Ra4 {[%clk 0:00:02.8]} 38... Be8 {[%clk
0:00:08.9]} 39. Ra3 {[%clk 0:00:02.9]} 39... Ne6 {[%clk 0:00:09.3]} 40. b4
{[%clk 0:00:03.3]} 40... Nd4+ {[%clk 0:00:09]} 41. Kd2 {[%clk 0:00:03.7]} 41...
Nb5 {[%clk 0:00:09.2]} 42. Ra1 {[%clk 0:00:04.1]} 42... Kf6 {[%clk 0:00:09.6]}
43. Ke3 {[%clk 0:00:04.5]} 43... Ke5 {[%clk 0:00:09.3]} 44. h4 {[%clk 0:00:05]}
44... Bh5 {[%clk 0:00:07.3]} 45. Rf1 {[%clk 0:00:05]} 45... Nd4 {[%clk
0:00:06.9]} 46. g3 {[%clk 0:00:03.8]} 46... Bg4 {[%clk 0:00:06.7]} 47. Rh1
{[%clk 0:00:03.5]} 47... Nc2+ {[%clk 0:00:05.5]} 48. Kd2 {[%clk 0:00:03.5]}
48... Nxb4 {[%clk 0:00:06.1]} 49. h5 {[%clk 0:00:03.4]} 49... Nc6 {[%clk
0:00:06.2]} 50. h6 {[%clk 0:00:03.5]} 50... Nxa5 {[%clk 0:00:05.7]} 51. Ra1
{[%clk 0:00:03.4]} 51... Ra7 {[%clk 0:00:02.4]} 52. Ke1 {[%clk 0:00:02.4]} 52...
Be6 {[%clk 0:00:02.5]} 53. h7 {[%clk 0:00:01.9]} 53... Rxh7 {[%clk 0:00:01.5]}
54. Rxa5+ {[%clk 0:00:02.4]} 1-0

[Event "*** Titled Tuesday Blitz"]
[Site "Chess.com"]
[Date "2021.04.06"]
[Round "5"]
[White "Fischerev7"]
[Black "catzapto"]
[Result "0-1"]
[WhiteElo "2273"]
[BlackElo "2067"]
[TimeControl "180+1"]
[EndTime "10:58:44 PDT"]
[Termination "catzapto won on time"]

1. e4 {[%clk 0:03:00.9]} 1... c5 {[%clk 0:02:57.7]} 2. Nf3 {[%clk 0:03:00.5]}
2... e6 {[%clk 0:02:57.3]} 3. d4 {[%clk 0:02:59.4]} 3... cxd4 {[%clk 0:02:47.9]}
4. Nxd4 {[%clk 0:03:00.3]} 4... Nf6 {[%clk 0:02:48.6]} 5. Nc3 {[%clk 0:02:53.1]}
5... Bb4 {[%clk 0:02:46]} 6. Bd3 {[%clk 0:02:51.9]} 6... Nc6 {[%clk 0:02:43.4]}
7. Nxc6 {[%clk 0:02:51.7]} 7... bxc6 {[%clk 0:02:40.1]} 8. O-O {[%clk
0:02:52.6]} 8... d5 {[%clk 0:02:39.7]} 9. exd5 {[%clk 0:02:51.6]} 9... cxd5
{[%clk 0:02:37.5]} 10. Bd2 {[%clk 0:02:44.8]} 10... O-O {[%clk 0:02:33.7]} 11.
Qf3 {[%clk 0:02:27.9]} 11... e5 {[%clk 0:02:19]} 12. Bg5 {[%clk 0:01:59.4]}
12... e4 {[%clk 0:02:15.5]} 13. Bxf6 {[%clk 0:01:53.6]} 13... Qxf6 {[%clk
0:02:07]} 14. Qxf6 {[%clk 0:01:51.9]} 14... gxf6 {[%clk 0:02:04.5]} 15. Nxd5
{[%clk 0:01:52.1]} 15... exd3 {[%clk 0:01:45.5]} 16. Nxb4 {[%clk 0:01:48.3]}
16... dxc2 {[%clk 0:01:44.7]} 17. Nxc2 {[%clk 0:01:45.5]} 17... Be6 {[%clk
0:01:43.3]} 18. b3 {[%clk 0:01:37.8]} 18... Rac8 {[%clk 0:01:18.4]} 19. Rac1
{[%clk 0:01:34]} 19... Rc3 {[%clk 0:01:04.2]} 20. Nd4 {[%clk 0:01:22.5]} 20...
Rfc8 {[%clk 0:01:01.6]} 21. Rxc3 {[%clk 0:01:18.4]} 21... Rxc3 {[%clk
0:01:02.5]} 22. Re1 {[%clk 0:01:12.9]} 22... Rd3 {[%clk 0:01:01.4]} 23. Nxe6
{[%clk 0:01:07]} 23... fxe6 {[%clk 0:01:01.3]} 24. g3 {[%clk 0:01:07.4]} 24...
Kf7 {[%clk 0:01:01.9]} 25. Re2 {[%clk 0:01:03.4]} 25... a5 {[%clk 0:00:59.2]}
26. Rc2 {[%clk 0:01:02.3]} 26... a4 {[%clk 0:00:53]} 27. bxa4 {[%clk 0:00:58.5]}
27... Ra3 {[%clk 0:00:52.9]} 28. Rc7+ {[%clk 0:00:56]} 28... Kg6 {[%clk
0:00:52.8]} 29. Ra7 {[%clk 0:00:54.7]} 29... Rxa2 {[%clk 0:00:51.6]} 30. a5
{[%clk 0:00:50.2]} 30... Kf5 {[%clk 0:00:51.2]} 31. Kg2 {[%clk 0:00:49.2]} 31...
e5 {[%clk 0:00:48.9]} 32. a6 {[%clk 0:00:44.6]} 32... Ra4 {[%clk 0:00:40.4]} 33.
Ra8 {[%clk 0:00:42]} 33... Ra3 {[%clk 0:00:37.7]} 34. a7 {[%clk 0:00:40]} 34...
e4 {[%clk 0:00:36.2]} 35. Kf1 {[%clk 0:00:31.3]} 35... Ra2 {[%clk 0:00:35.4]}
36. Ke1 {[%clk 0:00:30]} 36... Ra1+ {[%clk 0:00:22.3]} 37. Ke2 {[%clk
0:00:27.7]} 37... Ra2+ {[%clk 0:00:23.2]} 38. Ke3 {[%clk 0:00:25.7]} 38... Ra3+
{[%clk 0:00:23.3]} 39. Kd4 {[%clk 0:00:22.3]} 39... Ra4+ {[%clk 0:00:20.3]} 40.
Kc5 {[%clk 0:00:21.9]} 40... Ra1 {[%clk 0:00:20.6]} 41. Kb6 {[%clk 0:00:20.4]}
41... Rb1+ {[%clk 0:00:21]} 42. Kc7 {[%clk 0:00:20.5]} 42... Rc1+ {[%clk
0:00:21.4]} 43. Kd6 {[%clk 0:00:20.2]} 43... Rd1+ {[%clk 0:00:21.7]} 44. Ke7
{[%clk 0:00:18.5]} 44... Ra1 {[%clk 0:00:21.8]} 45. g4+ {[%clk 0:00:16.3]} 45...
Kf4 {[%clk 0:00:20.7]} 46. Kxf6 {[%clk 0:00:13.7]} 46... Kf3 {[%clk 0:00:21.3]}
47. Kg5 {[%clk 0:00:11.7]} 47... Ra5+ {[%clk 0:00:20.5]} 48. Kh4 {[%clk
0:00:11.8]} 48... Ke2 {[%clk 0:00:20.6]} 49. h3 {[%clk 0:00:08.3]} 49... Ke1
{[%clk 0:00:17.7]} 50. g5 {[%clk 0:00:07.8]} 50... Ke2 {[%clk 0:00:18.2]} 51.
Kh5 {[%clk 0:00:07.8]} 51... Ke1 {[%clk 0:00:18.6]} 52. h4 {[%clk 0:00:08.2]}
52... Ke2 {[%clk 0:00:18.9]} 53. Kh6 {[%clk 0:00:08.7]} 53... e3 {[%clk
0:00:18.6]} 54. fxe3 {[%clk 0:00:08.2]} 54... Ke1 {[%clk 0:00:18.9]} 55. e4
{[%clk 0:00:08.3]} 55... Ke2 {[%clk 0:00:19.2]} 56. e5 {[%clk 0:00:07.1]} 56...
Ke3 {[%clk 0:00:19.3]} 57. e6 {[%clk 0:00:07]} 57... Ra6 {[%clk 0:00:17.6]} 58.
Kxh7 {[%clk 0:00:05.5]} 58... Rxe6 {[%clk 0:00:17.6]} 0-1

[Event "*** Titled Tuesday Blitz"]
[Site "Chess.com"]
[Date "2021.04.06"]
[Round "5"]
[White "MaevskiyNikolay"]
[Black "kubal123"]
[Result "1/2-1/2"]
[WhiteElo "2565"]
[BlackElo "2230"]
[TimeControl "180+1"]
[EndTime "10:58:47 PDT"]
[Termination "Game drawn - insufficient material"]

1. Nf3 {[%clk 0:03:00.9]} 1... Nf6 {[%clk 0:02:59.6]} 2. c4 {[%clk 0:03:00.7]}
2... c5 {[%clk 0:02:57.1]} 3. e3 {[%clk 0:02:59.4]} 3... e6 {[%clk 0:02:51.7]}
4. Nc3 {[%clk 0:02:55.5]} 4... Nc6 {[%clk 0:02:50.3]} 5. d4 {[%clk 0:02:50.7]}
5... cxd4 {[%clk 0:02:50]} 6. exd4 {[%clk 0:02:50.9]} 6... d5 {[%clk 0:02:50]}
7. cxd5 {[%clk 0:02:46]} 7... Nxd5 {[%clk 0:02:48.9]} 8. Bd3 {[%clk 0:02:40.3]}
8... Bb4 {[%clk 0:02:46.8]} 9. Bd2 {[%clk 0:02:39.2]} 9... O-O {[%clk
0:02:45.6]} 10. O-O {[%clk 0:02:39]} 10... Nf6 {[%clk 0:02:45.3]} 11. a3 {[%clk
0:02:36.5]} 11... Be7 {[%clk 0:02:41.9]} 12. Bg5 {[%clk 0:02:35]} 12... b6
{[%clk 0:02:40.7]} 13. Rc1 {[%clk 0:02:33.6]} 13... Bb7 {[%clk 0:02:40.6]} 14.
Bb1 {[%clk 0:02:31.6]} 14... Rc8 {[%clk 0:02:30.2]} 15. Qd3 {[%clk 0:02:29.1]}
15... g6 {[%clk 0:02:29.8]} 16. Rfe1 {[%clk 0:02:27.4]} 16... Re8 {[%clk
0:02:19.7]} 17. Ba2 {[%clk 0:02:19]} 17... Qd6 {[%clk 0:01:40.7]} 18. Rcd1
{[%clk 0:01:45.7]} 18... Red8 {[%clk 0:01:40.1]} 19. Qe2 {[%clk 0:01:27.6]}
19... Nh5 {[%clk 0:01:19.4]} 20. Ne4 {[%clk 0:01:10.7]} 20... Qb8 {[%clk
0:01:02.4]} 21. d5 {[%clk 0:00:59.3]} 21... exd5 {[%clk 0:00:53.1]} 22. Rxd5
{[%clk 0:00:52.6]} 22... Nf4 {[%clk 0:00:38.2]} 23. Rxd8+ {[%clk 0:00:52.3]}
23... Rxd8 {[%clk 0:00:36.8]} 24. Qc4 {[%clk 0:00:40.3]} 24... Ne6 {[%clk
0:00:32.2]} 25. Bxe7 {[%clk 0:00:38.5]} 25... Nxe7 {[%clk 0:00:33.1]} 26. Nf6+
{[%clk 0:00:36]} 26... Kg7 {[%clk 0:00:33.1]} 27. Qc3 {[%clk 0:00:34.9]} 27...
Qc8 {[%clk 0:00:23.5]} 28. Nh5+ {[%clk 0:00:31.4]} 28... Kg8 {[%clk 0:00:17.9]}
29. Nf6+ {[%clk 0:00:18.8]} 29... Kg7 {[%clk 0:00:17.8]} 30. Ne8+ {[%clk
0:00:14.7]} 30... Kg8 {[%clk 0:00:17.2]} 31. Qxc8 {[%clk 0:00:12.3]} 31... Rxc8
{[%clk 0:00:16.7]} 32. Rxe6 {[%clk 0:00:08.6]} 32... Rxe8 {[%clk 0:00:11.2]} 33.
Re3 {[%clk 0:00:05.4]} 33... Bxf3 {[%clk 0:00:10.4]} 34. Rxf3 {[%clk 0:00:05.7]}
34... Rf8 {[%clk 0:00:09.6]} 35. Rd3 {[%clk 0:00:05]} 35... Nc6 {[%clk 0:00:09]}
36. Rd6 {[%clk 0:00:04.2]} 36... Rd8 {[%clk 0:00:08.1]} 37. Rxd8+ {[%clk
0:00:02.2]} 37... Nxd8 {[%clk 0:00:09]} 38. Bd5 {[%clk 0:00:02.2]} 38... Kg7
{[%clk 0:00:09.2]} 39. f4 {[%clk 0:00:02.5]} 39... Kf6 {[%clk 0:00:09.6]} 40.
Kf2 {[%clk 0:00:02.8]} 40... Ke7 {[%clk 0:00:09.8]} 41. Ke3 {[%clk 0:00:02.9]}
41... Kd6 {[%clk 0:00:10.3]} 42. Kd4 {[%clk 0:00:03.2]} 42... Ne6+ {[%clk
0:00:10.7]} 43. Bxe6 {[%clk 0:00:03.6]} 43... Kxe6 {[%clk 0:00:11.6]} 44. g4
{[%clk 0:00:03.9]} 44... f6 {[%clk 0:00:10.7]} 45. h4 {[%clk 0:00:03.9]} 45...
h6 {[%clk 0:00:10.3]} 46. b4 {[%clk 0:00:03.7]} 46... a6 {[%clk 0:00:09.6]} 47.
a4 {[%clk 0:00:03.7]} 47... Kd6 {[%clk 0:00:10.1]} 48. a5 {[%clk 0:00:03.8]}
48... bxa5 {[%clk 0:00:09.6]} 49. bxa5 {[%clk 0:00:03.7]} 49... Kc6 {[%clk
0:00:10.1]} 50. g5 {[%clk 0:00:03.3]} 50... fxg5 {[%clk 0:00:09.5]} 51. fxg5
{[%clk 0:00:03.3]} 51... hxg5 {[%clk 0:00:08.6]} 52. hxg5 {[%clk 0:00:04.2]}
52... Kd6 {[%clk 0:00:07.2]} 53. Ke4 {[%clk 0:00:04.4]} 53... Ke6 {[%clk
0:00:07.5]} 54. Kd4 {[%clk 0:00:04.9]} 54... Kd6 {[%clk 0:00:07.8]} 55. Kc4
{[%clk 0:00:05.4]} 55... Kc6 {[%clk 0:00:08.1]} 56. Kb4 {[%clk 0:00:05.4]} 56...
Kd5 {[%clk 0:00:07.9]} 57. Kc3 {[%clk 0:00:05.7]} 57... Kc5 {[%clk 0:00:08.1]}
58. Kd3 {[%clk 0:00:06]} 58... Kb5 {[%clk 0:00:07.2]} 59. Ke4 {[%clk 0:00:06.9]}
59... Kxa5 {[%clk 0:00:08.1]} 60. Ke5 {[%clk 0:00:07.8]} 60... Kb4 {[%clk
0:00:08.6]} 61. Kf6 {[%clk 0:00:08.7]} 61... a5 {[%clk 0:00:09.5]} 62. Kxg6
{[%clk 0:00:09.6]} 62... a4 {[%clk 0:00:10.4]} 63. Kh7 {[%clk 0:00:10]} 63... a3
{[%clk 0:00:11.3]} 64. g6 {[%clk 0:00:10.6]} 64... a2 {[%clk 0:00:11.7]} 65. g7
{[%clk 0:00:11.3]} 65... a1=Q {[%clk 0:00:11.4]} 66. g8=Q {[%clk 0:00:11.7]}
66... Qh1+ {[%clk 0:00:11.6]} 67. Kg7 {[%clk 0:00:11.8]} 67... Qg1+ {[%clk
0:00:12]} 68. Kh8 {[%clk 0:00:12.1]} 68... Qxg8+ {[%clk 0:00:12.6]} 69. Kxg8
{[%clk 0:00:12.4]} 1/2-1/2